[Event "Titled Tuesday Blitz June 28 Early 2022"]
[White "Ivanov, Mike"]
[Black "Ardila, Oscar Humberto"]
[WhiteFideId "2613158"]
[BlackFideId "4404742"]
[WhiteElo "2182"]
[BlackElo "1956"]
[Result "0-1"]
[Round "06"]
[TimeControl "180+1"]
[Date "2022.06.28"]
[WhiteClock "0:00:02"]
[BlackClock "0:01:04"]

1. e4 {[%clk 0:03:00]}  e5 {[%clk 0:02:57]} 2. Nf3 {[%clk 0:03:00]}  Nf6 {[%clk 0:02:57]} 3. Nxe5 {[%clk 0:02:57]}  d6 {[%clk 0:02:57]} 4. Nxf7 {[%clk 0:02:58]}  Kxf7 {[%clk 0:02:57]} 5. d4 {[%clk 0:02:57]}  c5 {[%clk 0:02:56]} 6. Bc4+ {[%clk 0:02:56]}  Be6 {[%clk 0:02:56]} 7. d5 {[%clk 0:02:56]}  Bg4 {[%clk 0:02:55]} 8. f3 {[%clk 0:02:55]}  Bh5 {[%clk 0:02:53]} 9. O-O {[%clk 0:02:51]}  Be7 {[%clk 0:02:52]} 10. Nc3 {[%clk 0:02:46]}  Re8 {[%clk 0:02:49]} 11. g4 {[%clk 0:02:41]}  Bg6 {[%clk 0:02:48]} 12. g5 {[%clk 0:02:37]}  Nfd7 {[%clk 0:02:34]} 13. f4 {[%clk 0:02:36]}  Kg8 {[%clk 0:02:32]} 14. a4 {[%clk 0:01:39]}  Bf8 {[%clk 0:02:28]} 15. a5 {[%clk 0:01:37]}  Bxe4 {[%clk 0:02:20]} 16. Nxe4 {[%clk 0:01:35]}  Rxe4 {[%clk 0:02:19]} 17. Bd3 {[%clk 0:01:35]}  Qe7 {[%clk 0:02:12]} 18. Bxe4 {[%clk 0:01:04]}  Qxe4 {[%clk 0:02:11]} 19. Re1 {[%clk 0:01:05]}  Qg6 {[%clk 0:02:05]} 20. Re6 {[%clk 0:00:52]}  Qf7 {[%clk 0:02:03]} 21. Qg4 {[%clk 0:00:36]}  Na6 {[%clk 0:02:02]} 22. c4 {[%clk 0:00:35]}  Nb4 {[%clk 0:02:01]} 23. Ra3 {[%clk 0:00:29]}  Nc2 {[%clk 0:01:59]} 24. Rh3 {[%clk 0:00:28]}  g6 {[%clk 0:01:46]} 25. Bd2 {[%clk 0:00:17]}  Bg7 {[%clk 0:01:45]} 26. Bc3 {[%clk 0:00:17]}  Bd4+ {[%clk 0:01:42]} 27. Bxd4 {[%clk 0:00:15]}  Nxd4 {[%clk 0:01:42]} 28. Rxd6 {[%clk 0:00:15]}  Nf8 {[%clk 0:01:38]} 29. Rf6 {[%clk 0:00:12]}  Qe7 {[%clk 0:01:37]} 30. Rg3 {[%clk 0:00:04]}  Qe1+ {[%clk 0:01:32]} 31. Kg2 {[%clk 0:00:04]}  Re8 {[%clk 0:01:24]} 32. d6 {[%clk 0:00:03]}  Nf5 {[%clk 0:01:15]} 33. Kh3 {[%clk 0:00:03]}  Qf1+ {[%clk 0:01:13]} 34. Rg2 {[%clk 0:00:02]}  Re3+ {[%clk 0:01:12]} 35. Qg3 {[%clk 0:00:01]}  Nxg3 {[%clk 0:01:04]} 36. hxg3 {[%clk 0:00:02]}  Re2 {[%clk 0:01:04]} 0-1


[Site "https://www.chess.com"]

[Event "Titled Tuesday Blitz June 28 Early 2022"]
[White "Jaracz, Pawel"]
[Black "Shimanov, Aleksandr"]
[WhiteFideId "1102222"]
[BlackFideId "4198603"]
[WhiteElo "2669"]
[BlackElo "2898"]
[Result "0-1"]
[Round "06"]
[TimeControl "180+1"]
[Date "2022.06.28"]
[WhiteClock "0:00:17"]
[BlackClock "0:00:21"]

1. e4 {[%clk 0:02:59]}  e6 {[%clk 0:02:58]} 2. d4 {[%clk 0:02:59]}  d5 {[%clk 0:02:59]} 3. Nd2 {[%clk 0:02:59]}  c5 {[%clk 0:02:58]} 4. exd5 {[%clk 0:02:58]}  Qxd5 {[%clk 0:02:59]} 5. Ngf3 {[%clk 0:02:58]}  cxd4 {[%clk 0:02:59]} 6. Bc4 {[%clk 0:02:58]}  Qd6 {[%clk 0:03:00]} 7. O-O {[%clk 0:02:56]}  Nf6 {[%clk 0:03:00]} 8. Nb3 {[%clk 0:02:57]}  Nc6 {[%clk 0:03:00]} 9. Nbxd4 {[%clk 0:02:56]}  Nxd4 {[%clk 0:03:01]} 10. Nxd4 {[%clk 0:02:57]}  Be7 {[%clk 0:03:01]} 11. Nb5 {[%clk 0:02:44]}  Qc6 {[%clk 0:02:55]} 12. Qe2 {[%clk 0:02:43]}  O-O {[%clk 0:02:51]} 13. Bf4 {[%clk 0:02:39]}  a6 {[%clk 0:02:40]} 14. Nd4 {[%clk 0:02:34]}  Qc5 {[%clk 0:02:39]} 15. Nb3 {[%clk 0:02:26]}  Qb6 {[%clk 0:02:17]} 16. Rad1 {[%clk 0:02:11]}  Bd7 {[%clk 0:02:17]} 17. Bd3 {[%clk 0:01:59]}  Rfd8 {[%clk 0:02:11]} 18. Be5 {[%clk 0:01:45]}  Be8 {[%clk 0:02:02]} 19. Qf3 {[%clk 0:01:42]}  Rd5 {[%clk 0:01:58]} 20. Rfe1 {[%clk 0:01:41]}  Rad8 {[%clk 0:01:55]} 21. Qh3 {[%clk 0:01:37]}  h6 {[%clk 0:01:39]} 22. Qf3 {[%clk 0:01:32]}  a5 {[%clk 0:01:35]} 23. Nd2 {[%clk 0:01:20]}  Qa7 {[%clk 0:01:15]} 24. Qg3 {[%clk 0:01:06]}  Nh5 {[%clk 0:01:05]} 25. Qh3 {[%clk 0:01:05]}  Nf6 {[%clk 0:01:05]} 26. Qg3 {[%clk 0:00:51]}  Bc6 {[%clk 0:00:33]} 27. b3 {[%clk 0:00:37]}  b5 {[%clk 0:00:32]} 28. Bb2 {[%clk 0:00:36]}  Nh5 {[%clk 0:00:28]} 29. Qf3 {[%clk 0:00:25]}  Rxd3 {[%clk 0:00:25]} 30. Qg4 {[%clk 0:00:17]}  Rxd2 {[%clk 0:00:21]} 0-1


[Site "https://www.chess.com"]

[Event "Titled Tuesday Blitz June 28 Early 2022"]
[White "Jiganchine, Roman"]
[Black "Johnson, Donald"]
[WhiteFideId "2603667"]
[BlackFideId "30949122"]
[WhiteElo "2294"]
[BlackElo "1724"]
[Result "0-1"]
[Round "06"]
[TimeControl "180+1"]
[Date "2022.06.28"]
[WhiteClock "0:00:52"]
[BlackClock "0:01:23"]

1. Nf3 {[%clk 0:02:59]}  g6 {[%clk 0:02:51]} 2. d4 {[%clk 0:02:53]}  Nf6 {[%clk 0:02:50]} 3. Nc3 {[%clk 0:02:52]}  d5 {[%clk 0:02:50]} 4. Bf4 {[%clk 0:02:49]}  Bg7 {[%clk 0:02:48]} 5. e3 {[%clk 0:02:49]}  O-O {[%clk 0:02:47]} 6. Be2 {[%clk 0:02:48]}  c5 {[%clk 0:02:40]} 7. h3 {[%clk 0:02:45]}  cxd4 {[%clk 0:02:39]} 8. exd4 {[%clk 0:02:40]}  Nc6 {[%clk 0:02:38]} 9. O-O {[%clk 0:02:39]}  Ne4 {[%clk 0:02:35]} 10. Bb5 {[%clk 0:02:19]}  Nxc3 {[%clk 0:02:34]} 11. bxc3 {[%clk 0:02:19]}  Bd7 {[%clk 0:02:34]} 12. Re1 {[%clk 0:02:17]}  Rc8 {[%clk 0:02:33]} 13. Bf1 {[%clk 0:02:01]}  Na5 {[%clk 0:02:29]} 14. Ne5 {[%clk 0:01:57]}  Bf5 {[%clk 0:02:15]} 15. Bd2 {[%clk 0:01:52]}  Nc6 {[%clk 0:02:08]} 16. Bd3 {[%clk 0:01:43]}  Bxd3 {[%clk 0:01:59]} 17. cxd3 {[%clk 0:01:41]}  Qc7 {[%clk 0:01:52]} 18. Nxc6 {[%clk 0:01:38]}  bxc6 {[%clk 0:01:53]} 19. Qe2 {[%clk 0:01:37]}  e6 {[%clk 0:01:52]} 20. Rab1 {[%clk 0:01:36]}  Rb8 {[%clk 0:01:50]} 21. Qf3 {[%clk 0:01:34]}  Qa5 {[%clk 0:01:49]} 22. Bf4 {[%clk 0:01:24]}  Rxb1 {[%clk 0:01:47]} 23. Rxb1 {[%clk 0:01:24]}  Qxc3 {[%clk 0:01:45]} 24. Rb7 {[%clk 0:01:19]}  Bxd4 {[%clk 0:01:37]} 25. Bd6 {[%clk 0:01:10]}  Qe1+ {[%clk 0:01:32]} 26. Kh2 {[%clk 0:01:09]}  Bxf2 {[%clk 0:01:26]} 27. h4 {[%clk 0:00:53]}  Qg1+ {[%clk 0:01:24]} 28. Kh3 {[%clk 0:00:53]}  Qh1+ {[%clk 0:01:24]} 29. Kg4 {[%clk 0:00:52]}  Qxh4# {[%clk 0:01:23]} 0-1


[Site "https://www.chess.com"]

[Event "Titled Tuesday Blitz June 28 Early 2022"]
[White "Jones, Gawain C B"]
[Black "Yoo, Christopher Woojin"]
[WhiteFideId "409561"]
[BlackFideId "30909694"]
[WhiteElo "2843"]
[BlackElo "2979"]
[Result "1-0"]
[Round "06"]
[TimeControl "180+1"]
[Date "2022.06.28"]
[WhiteClock "0:00:17"]
[BlackClock "0:00:02"]

1. Nf3 {[%clk 0:03:00]}  d5 {[%clk 0:02:59]} 2. g3 {[%clk 0:03:00]}  Bf5 {[%clk 0:02:51]} 3. Bg2 {[%clk 0:03:00]}  e6 {[%clk 0:02:51]} 4. c4 {[%clk 0:03:00]}  c6 {[%clk 0:02:52]} 5. d3 {[%clk 0:02:59]}  Nf6 {[%clk 0:02:52]} 6. Qb3 {[%clk 0:02:59]}  Qc8 {[%clk 0:02:46]} 7. Nh4 {[%clk 0:02:56]}  Bg6 {[%clk 0:02:45]} 8. Nxg6 {[%clk 0:02:55]}  hxg6 {[%clk 0:02:46]} 9. Nc3 {[%clk 0:02:53]}  Nbd7 {[%clk 0:02:46]} 10. Be3 {[%clk 0:02:50]}  Ng4 {[%clk 0:02:35]} 11. Bd2 {[%clk 0:02:43]}  Bc5 {[%clk 0:02:34]} 12. e3 {[%clk 0:02:39]}  Nde5 {[%clk 0:02:26]} 13. Qc2 {[%clk 0:02:25]}  dxc4 {[%clk 0:02:24]} 14. dxc4 {[%clk 0:02:24]}  Qd7 {[%clk 0:02:05]} 15. Ne4 {[%clk 0:02:21]}  Be7 {[%clk 0:02:04]} 16. Bc3 {[%clk 0:02:12]}  f5 {[%clk 0:01:38]} 17. Rd1 {[%clk 0:02:07]}  Qc7 {[%clk 0:01:37]} 18. h3 {[%clk 0:01:59]}  Nh6 {[%clk 0:01:27]} 19. Nd2 {[%clk 0:01:50]}  O-O {[%clk 0:01:14]} 20. f4 {[%clk 0:01:43]}  Nef7 {[%clk 0:01:06]} 21. Nf3 {[%clk 0:01:43]}  Bf6 {[%clk 0:00:49]} 22. g4 {[%clk 0:01:42]}  g5 {[%clk 0:00:46]} 23. Bxf6 {[%clk 0:01:35]}  gxf6 {[%clk 0:00:46]} 24. Nd4 {[%clk 0:01:31]}  Rae8 {[%clk 0:00:39]} 25. O-O {[%clk 0:01:25]}  c5 {[%clk 0:00:36]} 26. Nb5 {[%clk 0:01:23]}  Qe7 {[%clk 0:00:36]} 27. Rd2 {[%clk 0:01:09]}  a6 {[%clk 0:00:33]} 28. Rfd1 {[%clk 0:01:08]}  Rd8 {[%clk 0:00:32]} 29. Nc3 {[%clk 0:01:04]}  Nd6 {[%clk 0:00:25]} 30. b3 {[%clk 0:00:56]}  Kh8 {[%clk 0:00:22]} 31. Bf3 {[%clk 0:00:28]}  Rg8 {[%clk 0:00:19]} 32. Rg2 {[%clk 0:00:28]}  Ndf7 {[%clk 0:00:13]} 33. Rxd8 {[%clk 0:00:27]}  Rxd8 {[%clk 0:00:14]} 34. Rd2 {[%clk 0:00:26]}  Rg8 {[%clk 0:00:13]} 35. Qd1 {[%clk 0:00:26]}  gxf4 {[%clk 0:00:10]} 36. Rd7 {[%clk 0:00:26]}  Qf8 {[%clk 0:00:10]} 37. exf4 {[%clk 0:00:26]}  fxg4 {[%clk 0:00:08]} 38. hxg4 {[%clk 0:00:26]}  Nxg4 {[%clk 0:00:07]} 39. Bxg4 {[%clk 0:00:24]}  f5 {[%clk 0:00:07]} 40. Kf2 {[%clk 0:00:22]}  Rxg4 {[%clk 0:00:07]} 41. Qh1+ {[%clk 0:00:20]}  Kg8 {[%clk 0:00:07]} 42. Ne2 {[%clk 0:00:18]}  Qh6 {[%clk 0:00:02]} 43. Qxh6 {[%clk 0:00:17]}  Nxh6 {[%clk 0:00:03]} 44. Rxb7 {[%clk 0:00:17]}  e5 {[%clk 0:00:02]} 45. Rb6 {[%clk 0:00:17]} 1-0


[Site "https://www.chess.com"]

[Event "Titled Tuesday Blitz June 28 Early 2022"]
[White "Karaev, Seit-Amet"]
[Black "Pourkashiyan, Atousa"]
[WhiteFideId "4169549"]
[BlackFideId "12502014"]
[WhiteElo "2272"]
[BlackElo "2247"]
[Result "0-1"]
[Round "06"]
[TimeControl "180+1"]
[Date "2022.06.28"]
[WhiteClock "0:01:03"]
[BlackClock "0:00:40"]

1. e4 {[%clk 0:03:00]}  e5 {[%clk 0:01:30]} 2. f4 {[%clk 0:02:59]}  d5 {[%clk 0:01:29]} 3. exd5 {[%clk 0:02:59]}  exf4 {[%clk 0:01:29]} 4. Nf3 {[%clk 0:02:59]}  Nf6 {[%clk 0:01:29]} 5. c4 {[%clk 0:02:59]}  Bd6 {[%clk 0:01:26]} 6. d4 {[%clk 0:02:59]}  O-O {[%clk 0:01:27]} 7. Be2 {[%clk 0:02:59]}  Re8 {[%clk 0:01:24]} 8. O-O {[%clk 0:02:59]}  Bg4 {[%clk 0:01:22]} 9. Nc3 {[%clk 0:02:59]}  Nbd7 {[%clk 0:01:22]} 10. c5 {[%clk 0:02:59]}  Bf8 {[%clk 0:01:22]} 11. Bxf4 {[%clk 0:02:59]}  Ne4 {[%clk 0:01:18]} 12. Bc4 {[%clk 0:02:56]}  Ndf6 {[%clk 0:01:16]} 13. Qb3 {[%clk 0:02:53]}  Bxf3 {[%clk 0:01:10]} 14. Rxf3 {[%clk 0:02:52]}  Nh5 {[%clk 0:01:10]} 15. Raf1 {[%clk 0:02:50]}  Nxf4 {[%clk 0:01:09]} 16. Rxf4 {[%clk 0:02:51]}  Nd2 {[%clk 0:01:08]} 17. Qa4 {[%clk 0:02:44]}  Nxf1 {[%clk 0:01:08]} 18. Rxf1 {[%clk 0:02:44]}  Qh4 {[%clk 0:01:07]} 19. Bb3 {[%clk 0:02:34]}  Re1 {[%clk 0:01:06]} 20. Qc4 {[%clk 0:02:32]}  Rae8 {[%clk 0:01:05]} 21. g3 {[%clk 0:02:21]}  Rxf1+ {[%clk 0:01:03]} 22. Qxf1 {[%clk 0:02:22]}  Qxd4+ {[%clk 0:01:03]} 23. Kg2 {[%clk 0:02:21]}  Qf6 {[%clk 0:00:55]} 24. Qc4 {[%clk 0:02:19]}  Re3 {[%clk 0:00:48]} 25. d6 {[%clk 0:02:05]}  Qf3+ {[%clk 0:00:48]} 26. Kh3 {[%clk 0:02:06]}  Re5 {[%clk 0:00:43]} 27. Qxf7+ {[%clk 0:01:09]}  Qxf7 {[%clk 0:00:44]} 28. dxc7 {[%clk 0:01:09]}  Rxc5 {[%clk 0:00:40]} 29. Bxf7+ {[%clk 0:01:03]}  Kxf7 {[%clk 0:00:40]} 30. Ne4 {[%clk 0:01:03]}  Rxc7 {[%clk 0:00:40]} 0-1


[Site "https://www.chess.com"]

[Event "Titled Tuesday Blitz June 28 Early 2022"]
[White "Karavade, Eesha"]
[Black "Hambleton, Aman"]
[WhiteFideId "5012600"]
[BlackFideId "2606577"]
[WhiteElo "2258"]
[BlackElo "2552"]
[Result "0-1"]
[Round "06"]
[TimeControl "180+1"]
[Date "2022.06.28"]
[WhiteClock "0:00:08"]
[BlackClock "0:00:03"]

1. d4 {[%clk 0:03:00]}  Nf6 {[%clk 0:02:49]} 2. c4 {[%clk 0:03:00]}  e6 {[%clk 0:02:48]} 3. Nf3 {[%clk 0:02:59]}  b6 {[%clk 0:02:48]} 4. g3 {[%clk 0:02:55]}  Ba6 {[%clk 0:02:46]} 5. Nbd2 {[%clk 0:02:54]}  Bb4 {[%clk 0:02:42]} 6. Qc2 {[%clk 0:02:54]}  Bb7 {[%clk 0:02:42]} 7. Bg2 {[%clk 0:02:54]}  Be4 {[%clk 0:02:41]} 8. Qd1 {[%clk 0:01:03]}  Bxd2+ {[%clk 0:02:27]} 9. Qxd2 {[%clk 0:01:00]}  O-O {[%clk 0:02:24]} 10. O-O {[%clk 0:00:59]}  d6 {[%clk 0:02:22]} 11. b3 {[%clk 0:00:59]}  Nc6 {[%clk 0:01:57]} 12. Bb2 {[%clk 0:00:58]}  Ne7 {[%clk 0:01:54]} 13. Rfd1 {[%clk 0:00:53]}  Re8 {[%clk 0:01:49]} 14. Bf1 {[%clk 0:00:53]}  Bxf3 {[%clk 0:01:48]} 15. exf3 {[%clk 0:00:53]}  d5 {[%clk 0:01:41]} 16. Rac1 {[%clk 0:00:50]}  c6 {[%clk 0:01:32]} 17. cxd5 {[%clk 0:00:46]}  Nfxd5 {[%clk 0:01:25]} 18. Ba3 {[%clk 0:00:41]}  Qd7 {[%clk 0:01:23]} 19. Bd3 {[%clk 0:00:41]}  Rac8 {[%clk 0:01:15]} 20. f4 {[%clk 0:00:40]}  g6 {[%clk 0:01:14]} 21. h4 {[%clk 0:00:38]}  h5 {[%clk 0:01:14]} 22. Rc2 {[%clk 0:00:34]}  Nf5 {[%clk 0:01:14]} 23. Rdc1 {[%clk 0:00:32]}  Nxd4 {[%clk 0:00:15]} 24. Be2 {[%clk 0:00:29]}  Nxc2 {[%clk 0:00:07]} 25. Qxc2 {[%clk 0:00:29]}  c5 {[%clk 0:00:07]} 26. Bb2 {[%clk 0:00:29]}  Nb4 {[%clk 0:00:04]} 27. Qc3 {[%clk 0:00:29]}  Qd4 {[%clk 0:00:04]} 28. a3 {[%clk 0:00:18]}  Qxc3 {[%clk 0:00:04]} 29. Bxc3 {[%clk 0:00:18]}  Na2 {[%clk 0:00:04]} 30. Rc2 {[%clk 0:00:17]}  Nxc3 {[%clk 0:00:05]} 31. Rxc3 {[%clk 0:00:17]}  Red8 {[%clk 0:00:05]} 32. Ba6 {[%clk 0:00:16]}  Rc7 {[%clk 0:00:06]} 33. Kg2 {[%clk 0:00:17]}  Rd4 {[%clk 0:00:06]} 34. b4 {[%clk 0:00:16]}  Kf8 {[%clk 0:00:06]} 35. Kf3 {[%clk 0:00:14]}  Ke7 {[%clk 0:00:06]} 36. bxc5 {[%clk 0:00:14]}  Rxc5 {[%clk 0:00:06]} 37. Re3 {[%clk 0:00:14]}  Ra4 {[%clk 0:00:05]} 38. Be2 {[%clk 0:00:13]}  Rca5 {[%clk 0:00:06]} 39. Kg2 {[%clk 0:00:11]}  Rxa3 {[%clk 0:00:06]} 40. Re4 {[%clk 0:00:11]}  R5a4 {[%clk 0:00:05]} 41. Re5 {[%clk 0:00:11]}  Ra5 {[%clk 0:00:04]} 42. Re4 {[%clk 0:00:11]}  Ra2 {[%clk 0:00:05]} 43. Bf1 {[%clk 0:00:09]}  Rc5 {[%clk 0:00:04]} 44. Rd4 {[%clk 0:00:08]}  Rcc2 {[%clk 0:00:04]} 45. Bd3 {[%clk 0:00:08]}  Rxf2+ {[%clk 0:00:03]} 46. Kg1 {[%clk 0:00:08]}  Rfd2 {[%clk 0:00:03]} 0-1


[Site "https://www.chess.com"]

[Event "Titled Tuesday Blitz June 28 Early 2022"]
[White "Kjartansson, David"]
[Black "Yuan, Qingyu"]
[WhiteFideId "2301130"]
[BlackFideId "8609772"]
[WhiteElo "2382"]
[BlackElo "2359"]
[Result "0-1"]
[Round "06"]
[TimeControl "180+1"]
[Date "2022.06.28"]
[WhiteClock "0:00:01"]
[BlackClock "0:00:03"]

1. d4 {[%clk 0:03:00]}  d5 {[%clk 0:03:00]} 2. Nc3 {[%clk 0:03:00]}  Nf6 {[%clk 0:03:00]} 3. Bf4 {[%clk 0:03:00]}  c5 {[%clk 0:03:00]} 4. e3 {[%clk 0:02:57]}  cxd4 {[%clk 0:03:00]} 5. exd4 {[%clk 0:02:56]}  Bg4 {[%clk 0:03:00]} 6. f3 {[%clk 0:02:54]}  Bd7 {[%clk 0:03:00]} 7. Nb5 {[%clk 0:02:46]}  Bxb5 {[%clk 0:02:49]} 8. Bxb5+ {[%clk 0:02:46]}  Nc6 {[%clk 0:02:49]} 9. c3 {[%clk 0:02:43]}  Rc8 {[%clk 0:02:44]} 10. Ne2 {[%clk 0:02:43]}  e6 {[%clk 0:02:40]} 11. O-O {[%clk 0:02:42]}  Be7 {[%clk 0:02:38]} 12. Bd3 {[%clk 0:02:38]}  O-O {[%clk 0:02:38]} 13. Kh1 {[%clk 0:02:35]}  Na5 {[%clk 0:02:36]} 14. g4 {[%clk 0:02:33]}  Nc4 {[%clk 0:02:36]} 15. Qc2 {[%clk 0:02:30]}  g6 {[%clk 0:02:26]} 16. b3 {[%clk 0:02:27]}  Nd6 {[%clk 0:02:15]} 17. h4 {[%clk 0:02:24]}  a6 {[%clk 0:01:46]} 18. h5 {[%clk 0:02:24]}  Kg7 {[%clk 0:01:26]} 19. Be5 {[%clk 0:02:10]}  g5 {[%clk 0:01:08]} 20. f4 {[%clk 0:02:01]}  h6 {[%clk 0:01:03]} 21. fxg5 {[%clk 0:01:59]}  hxg5 {[%clk 0:01:04]} 22. Ng3 {[%clk 0:01:57]}  Kh6 {[%clk 0:01:02]} 23. Qe2 {[%clk 0:01:47]}  Nd7 {[%clk 0:00:56]} 24. Rf3 {[%clk 0:01:37]}  Rxc3 {[%clk 0:00:52]} 25. Raf1 {[%clk 0:01:36]}  Qe8 {[%clk 0:00:33]} 26. Bb1 {[%clk 0:01:22]}  Rxf3 {[%clk 0:00:32]} 27. Qxf3 {[%clk 0:01:23]}  f6 {[%clk 0:00:29]} 28. Qd3 {[%clk 0:01:15]}  Qf7 {[%clk 0:00:22]} 29. Qd2 {[%clk 0:01:00]}  Qg7 {[%clk 0:00:19]} 30. Bxd6 {[%clk 0:00:40]}  Bxd6 {[%clk 0:00:19]} 31. Ne2 {[%clk 0:00:41]}  Re8 {[%clk 0:00:19]} 32. Bg6 {[%clk 0:00:36]}  Rc8 {[%clk 0:00:18]} 33. Rc1 {[%clk 0:00:31]}  Rxc1+ {[%clk 0:00:15]} 34. Qxc1 {[%clk 0:00:31]}  Nf8 {[%clk 0:00:16]} 35. Bd3 {[%clk 0:00:30]}  Qc7 {[%clk 0:00:16]} 36. Qe3 {[%clk 0:00:29]}  Bf4 {[%clk 0:00:12]} 37. Qf3 {[%clk 0:00:25]}  Qd6 {[%clk 0:00:11]} 38. Kg2 {[%clk 0:00:24]}  e5 {[%clk 0:00:12]} 39. Nxf4 {[%clk 0:00:22]}  gxf4 {[%clk 0:00:08]} 40. Bf5 {[%clk 0:00:17]}  e4 {[%clk 0:00:03]} 41. Qc3 {[%clk 0:00:17]}  f3+ {[%clk 0:00:02]} 42. Kh3 {[%clk 0:00:17]}  Ne6 {[%clk 0:00:02]} 43. Bxe6 {[%clk 0:00:11]}  Qxe6 {[%clk 0:00:03]} 44. Qc5 {[%clk 0:00:05]}  Kg5 {[%clk 0:00:02]} 45. Qc1+ {[%clk 0:00:04]}  e3 {[%clk 0:00:02]} 46. Qc7 {[%clk 0:00:01]}  Qxg4+ {[%clk 0:00:02]} 47. Kh2 {[%clk 0:00:01]}  Qg2# {[%clk 0:00:03]} 0-1


[Site "https://www.chess.com"]

[Event "Titled Tuesday Blitz June 28 Early 2022"]
[White "Kollars, Dmitrij"]
[Black "Andreikin, Dmitry"]
[WhiteFideId "12909572"]
[BlackFideId "4158814"]
[WhiteElo "3017"]
[BlackElo "3095"]
[Result "0-1"]
[Round "06"]
[TimeControl "180+1"]
[Date "2022.06.28"]
[WhiteClock "0:00:05"]
[BlackClock "0:00:08"]

1. e4 {[%clk 0:03:00]}  c5 {[%clk 0:02:59]} 2. Nf3 {[%clk 0:03:01]}  e6 {[%clk 0:03:00]} 3. c3 {[%clk 0:03:00]}  d5 {[%clk 0:02:57]} 4. exd5 {[%clk 0:03:01]}  Qxd5 {[%clk 0:02:57]} 5. d4 {[%clk 0:03:02]}  Nf6 {[%clk 0:02:57]} 6. Na3 {[%clk 0:03:01]}  Qd8 {[%clk 0:02:57]} 7. dxc5 {[%clk 0:02:56]}  Qxd1+ {[%clk 0:02:56]} 8. Kxd1 {[%clk 0:02:57]}  Bxc5 {[%clk 0:02:54]} 9. Nb5 {[%clk 0:02:57]}  Na6 {[%clk 0:02:49]} 10. b4 {[%clk 0:02:51]}  Bxf2 {[%clk 0:02:43]} 11. a4 {[%clk 0:02:52]}  Ke7 {[%clk 0:02:39]} 12. Kc2 {[%clk 0:02:46]}  Bd7 {[%clk 0:02:30]} 13. Kb3 {[%clk 0:02:35]}  Bc6 {[%clk 0:02:18]} 14. Ra2 {[%clk 0:02:22]}  Bb6 {[%clk 0:01:55]} 15. a5 {[%clk 0:02:21]}  Bc7 {[%clk 0:01:55]} 16. Be3 {[%clk 0:02:07]}  Nd5 {[%clk 0:01:47]} 17. Bd4 {[%clk 0:02:02]}  f6 {[%clk 0:01:48]} 18. Nxa7 {[%clk 0:01:58]}  e5 {[%clk 0:01:27]} 19. Bxa6 {[%clk 0:01:38]}  exd4 {[%clk 0:01:27]} 20. Nxc6+ {[%clk 0:01:39]}  bxc6 {[%clk 0:01:26]} 21. Bb7 {[%clk 0:01:40]}  Rab8 {[%clk 0:01:01]} 22. Bxc6 {[%clk 0:01:29]}  Nxc3 {[%clk 0:00:58]} 23. Rd2 {[%clk 0:01:28]}  Bxa5 {[%clk 0:00:53]} 24. Rxd4 {[%clk 0:01:29]}  Rhc8 {[%clk 0:00:34]} 25. Bd7 {[%clk 0:00:40]}  Rc7 {[%clk 0:00:27]} 26. Re1+ {[%clk 0:00:39]}  Kf8 {[%clk 0:00:27]} 27. Bf5 {[%clk 0:00:27]}  Nd5 {[%clk 0:00:20]} 28. Rxd5 {[%clk 0:00:19]}  Bxb4 {[%clk 0:00:21]} 29. Re4 {[%clk 0:00:12]}  Be1+ {[%clk 0:00:09]} 30. Ka3 {[%clk 0:00:11]}  Ra7+ {[%clk 0:00:09]} 31. Ra4 {[%clk 0:00:10]}  Bb4+ {[%clk 0:00:10]} 32. Kb3 {[%clk 0:00:10]}  Be7+ {[%clk 0:00:10]} 33. Kc2 {[%clk 0:00:08]}  Rxa4 {[%clk 0:00:10]} 34. Nd4 {[%clk 0:00:09]}  g6 {[%clk 0:00:09]} 35. Bd3 {[%clk 0:00:08]}  Kf7 {[%clk 0:00:08]} 36. Rd7 {[%clk 0:00:05]}  Rd8 {[%clk 0:00:06]} 37. Rxd8 {[%clk 0:00:04]}  Bxd8 {[%clk 0:00:07]} 38. Nc6 {[%clk 0:00:05]}  Bc7 {[%clk 0:00:07]} 39. Kb3 {[%clk 0:00:05]}  Rh4 {[%clk 0:00:06]} 40. Bc4+ {[%clk 0:00:05]}  Kg7 {[%clk 0:00:06]} 41. h3 {[%clk 0:00:06]}  f5 {[%clk 0:00:07]} 42. Bd5 {[%clk 0:00:06]}  Kf6 {[%clk 0:00:07]} 43. Kc3 {[%clk 0:00:06]}  Be5+ {[%clk 0:00:07]} 44. Kd3 {[%clk 0:00:06]}  Ra4 {[%clk 0:00:07]} 45. Bf3 {[%clk 0:00:07]}  h5 {[%clk 0:00:07]} 46. Kc2 {[%clk 0:00:06]}  Rc4+ {[%clk 0:00:06]} 47. Kd3 {[%clk 0:00:05]}  Rc5 {[%clk 0:00:07]} 48. Nb4 {[%clk 0:00:05]}  g5 {[%clk 0:00:07]} 49. Ba8 {[%clk 0:00:04]}  g4 {[%clk 0:00:07]} 50. hxg4 {[%clk 0:00:05]}  hxg4 {[%clk 0:00:07]} 51. Nd5+ {[%clk 0:00:05]}  Kg5 {[%clk 0:00:08]} 52. Ne3 {[%clk 0:00:06]}  Rc3+ {[%clk 0:00:08]} 53. Kd2 {[%clk 0:00:06]}  f4 {[%clk 0:00:07]} 54. Nd5 {[%clk 0:00:06]}  Ra3 {[%clk 0:00:08]} 55. Bc6 {[%clk 0:00:05]}  Ra2+ {[%clk 0:00:08]} 56. Ke1 {[%clk 0:00:04]}  Rxg2 {[%clk 0:00:07]} 57. Nxf4 {[%clk 0:00:05]}  Rc2 {[%clk 0:00:08]} 58. Nd3 {[%clk 0:00:04]}  Rxc6 {[%clk 0:00:07]} 59. Nxe5 {[%clk 0:00:05]}  Re6 {[%clk 0:00:08]} 0-1


[Site "https://www.chess.com"]